fUST/lending_fUST_20250628
["ID","MTS","AMOUNT","RATE_DAILY","PERIOD"]
[368161734,1751043048854,-460.0,0.0002,2]
[368161735,1751043048864,-256.966885,0.0002,2]
[368161736,1751043048874,-256.966885,0.0002,2]
[368161737,1751043048883,-192.29923289,0.0002,2]
[368161738,1751043048894,-460.0,0.0002,2]
[368161739,1751043048904,-460.0,0.0002,2]
[368161740,1751043048914,-1477.84,0.0002,2]
[368161741,1751043048923,-460.0,0.0002,2]
[368161742,1751043048934,-1419.89,0.0002,2]
[368161743,1751043048945,-2340.21,0.0002,2]
[368161744,1751043048955,-243.4,0.0002,2]
[368161745,1751043048965,-460.0,0.0002,2]
[368161746,1751043048974,-460.0,0.0002,2]
[368161747,1751043048984,-460.0,0.0002,2]
[368161748,1751043048994,-381.62,0.0002,2]
[368161749,1751043049005,-460.0,0.0002,2]
[368161750,1751043049015,-460.0,0.0002,2]
[368161751,1751043049026,-460.0,0.0002,2]
[368161752,1751043049036,-460.0,0.0002,2]
[368161753,1751043049047,-460.0,0.0002,2]
[368161754,1751043049056,-460.0,0.0002,2]
[368161755,1751043049067,-1165.21,0.0002,2]
[368161756,1751043049077,-460.0,0.0002,2]
[368161757,1751043049087,-1348.73,0.0002,2]
[368161758,1751043049096,-151.0,0.0002,2]
[368161759,1751043049106,-465.34,0.0002,2]
[368161760,1751043049116,-460.0,0.0002,2]
[368161761,1751043049126,-460.0,0.0002,2]
[368161762,1751043049136,-460.0,0.0002,2]
[368161763,1751043049146,-1688.52,0.0002,2]
[368161764,1751043049156,-460.0,0.0002,2]
[368161765,1751043049167,-460.0,0.0002,2]
[368161766,1751043049177,-499.4,0.0002,2]
[368161767,1751043049187,-151.0,0.0002,2]
[368161768,1751043049197,-151.0,0.0002,2]
[368161769,1751043049208,-151.0,0.0002,2]
[368161770,1751043049217,-460.0,0.0002,2]
[368161771,1751043049227,-460.0,0.0002,2]
[368161772,1751043049238,-460.0,0.0002,2]
[368161773,1751043049248,-460.0,0.0002,2]
[368161774,1751043049258,-460.0,0.0002,2]
[368161775,1751043049268,-460.0,0.0002,2]
[368161776,1751043049278,-839.88,0.0002,2]
[368161777,1751043049288,-151.0,0.0002,2]
[368161778,1751043049297,-460.0,0.0002,2]
[368161779,1751043049307,-460.0,0.0002,2]
[368161780,1751043049317,-460.0,0.0002,2]
[368161781,1751043049327,-460.0,0.0002,2]
[368161782,1751043049338,-152.213498,0.0002,2]
[368161783,1751043049348,-688.86,0.0002,2]
[368161784,1751043049359,-460.0,0.0002,2]
[368161785,1751043049368,-460.0,0.0002,2]
[368161786,1751043049377,-460.0,0.0002,2]
[368161787,1751043049386,-460.0,0.0002,2]
[368161788,1751043049396,-460.0,0.0002,2]
[368161789,1751043049405,-671.69,0.0002,2]
[368161790,1751043049414,-862.89,0.0002,2]
[368161791,1751043049423,-460.0,0.0002,2]
[368161792,1751043049434,-467.87,0.0002,2]
[368161793,1751043049443,-460.0,0.0002,2]
[368161794,1751043049451,-460.0,0.0002,2]
[368161795,1751043049461,-3251.71,0.0002,2]
[368161796,1751043049470,-460.0,0.0002,2]
[368161797,1751043049480,-460.0,0.0002,2]
[368161798,1751043049490,-1656.91,0.0002,2]
[368161799,1751043049501,-781.68,0.0002,2]
[368161800,1751043049514,-460.0,0.0002,2]
[368161801,1751043049525,-460.0,0.0002,2]
[368161802,1751043049537,-2293.32,0.0002,2]
[368161803,1751043049546,-460.0,0.0002,2]
[368161804,1751043049555,-420.0,0.0002,2]
[368161805,1751043049565,-830.87,0.0002,2]
[368161806,1751043049575,-151.0,0.0002,2]
[368161807,1751043049584,-460.0,0.0002,2]
[368161808,1751043049593,-824.14,0.0002,2]
[368161809,1751043049603,-987.87,0.0002,2]
[368161810,1751043049612,-460.0,0.0002,2]
[368161811,1751043049621,-460.0,0.0002,2]
[368161812,1751043049631,-460.0,0.0002,2]
[368161813,1751043049639,-460.0,0.0002,2]
[368161814,1751043049650,-460.0,0.0002,2]
[368161815,1751043049660,-460.0,0.0002,2]
[368161816,1751043049671,-460.0,0.0002,2]
[368161817,1751043049681,-6348.47,0.0002,2]
[368161818,1751043049692,-758.58,0.0002,2]
[368161819,1751043049702,-1276.09,0.0002,2]
[368161820,1751043049711,-460.0,0.0002,2]
[368161821,1751043049720,-151.0,0.0002,2]
[368161822,1751043049729,-4728.92,0.0002,2]
[368161823,1751043049738,-151.0,0.0002,2]
[368161824,1751043049747,-1011.87,0.0002,2]
[368161825,1751043049756,-460.0,0.0002,2]
[368161826,1751043049765,-164.80202433,0.0002,2]
[368161827,1751043049774,-1345.96,0.0002,2]
[368161828,1751043049783,-3328.7,0.0002,2]
[368161829,1751043049792,-460.0,0.0002,2]
[368161830,1751043049801,-460.0,0.0002,2]
[368161831,1751043049810,-460.0,0.0002,2]
[368161832,1751043049819,-1436.21,0.0002,2]
[368161833,1751043049830,-598.96,0.0002,2]
[368161834,1751043049841,-460.0,0.0002,2]
[368161835,1751043049852,-610.17,0.0002,2]
[368161836,1751043049862,-460.0,0.0002,2]
[368161837,1751043049871,-460.0,0.0002,2]
[368161838,1751043049882,-517.435814,0.0002,2]
[368161839,1751043049892,-2701.01,0.0002,2]
[368161840,1751043049902,-517.435814,0.0002,2]
[368161841,1751043049912,-634.89,0.0002,2]
[368161842,1751043049921,-1107.05,0.0002,2]
[368161843,1751043049931,-460.0,0.0002,2]
[368161844,1751043049941,-151.0,0.0002,2]
[368161845,1751043049952,-644.82563546,0.00020009,2]
[368161846,1751043049961,-1002.89649884,0.00020021,2]
[368161847,1751043049971,-1000.0,0.00020021,2]
[368161848,1751043049981,-352.62706363,0.00020021,2]
[368161849,1751043049992,-723.05869188,0.00020021,2]
[368161850,1751043050003,-501.81369713,0.00020021,2]
[368161851,1751043050015,-1000.0,0.00020021,2]
[368161852,1751043050025,-420.0,0.00020045,2]
[368161853,1751043050036,-151.0,0.000201,4]
[368161854,1751043050047,-5394.89699381,0.00020105,2]
[368161855,1751043050058,-7891.5880448,0.00020107,2]
[368161856,1751043050069,-169.01433676,0.00020173,2]
[368161857,1751043050079,-151.0,0.000202,4]
[368161858,1751043050089,-151.0,0.000202,4]
[368161859,1751043050099,-151.0,0.000202,3]
[368161860,1751043050109,-500.0,0.00020268,2]
[368161861,1751043050119,-500.0,0.00020268,2]
[368161862,1751043050129,-500.0,0.00020268,2]
[368161863,1751043050139,-460.0,0.00020273,2]
[368161864,1751043050150,-460.0,0.00020273,2]
[368161865,1751043050162,-460.0,0.00020273,2]
[368161866,1751043050173,-460.0,0.00020273,2]
[368161867,1751043050186,-475.90325592,0.00020273,2]
[368161868,1751043050197,-538.31454337,0.00020273,2]
[368161869,1751043050207,-482.90102481,0.00020273,2]
[368161870,1751043050218,-160.0,0.00020273,2]
[368161871,1751043050230,-460.0,0.00020273,2]
[368161872,1751043050240,-460.0,0.00020273,2]
[368161873,1751043050251,-460.0,0.00020273,2]
[368161874,1751043050263,-353.14510899,0.00020273,2]
[368161875,1751043050273,-460.0,0.00020273,2]
[368161876,1751043050284,-460.0,0.00020273,2]
[368161877,1751043050294,-460.0,0.00020273,2]
[368161878,1751043050304,-460.0,0.00020273,2]
[368161879,1751043050315,-460.0,0.00020273,2]
[368161880,1751043050325,-460.0,0.00020273,2]
[368161881,1751043050335,-460.0,0.00020273,2]
[368161882,1751043050345,-219.51,0.00020273,2]
[368161883,1751043050354,-460.0,0.00020273,2]
[368161884,1751043050364,-460.0,0.00020273,2]
[368161885,1751043050375,-460.0,0.00020273,2]
[368161886,1751043050385,-524.56977055,0.00020273,2]
[368161887,1751043050395,-460.0,0.00020273,2]
[368161888,1751043050405,-460.0,0.00020273,2]
[368161889,1751043050415,-460.0,0.00020273,2]
[368161890,1751043050425,-460.0,0.00020273,2]
[368161891,1751043050438,-460.0,0.00020273,2]
[368161892,1751043050447,-523.16,0.00020273,2]
[368161893,1751043050458,-460.0,0.00020273,2]
[368161894,1751043050469,-460.0,0.00020273,2]
[368161895,1751043050479,-460.0,0.00020273,2]
[368161896,1751043050489,-460.0,0.00020273,2]
[368161897,1751043050499,-460.0,0.00020273,2]
[368161898,1751043050510,-708.73,0.00020273,2]
[368161899,1751043050520,-460.0,0.00020273,2]
[368161900,1751043050531,-460.0,0.00020273,2]
[368161901,1751043050544,-151.093005,0.00020273,2]
[368161902,1751043050554,-460.0,0.00020273,2]
[368161903,1751043050567,-460.0,0.00020273,2]
[368161904,1751043050579,-460.0,0.00020273,2]
[368161905,1751043050589,-460.0,0.00020273,2]
[368161906,1751043050598,-460.0,0.00020273,2]
[368161907,1751043050609,-460.0,0.00020273,2]
[368161908,1751043050619,-460.0,0.00020273,2]
[368161909,1751043050628,-460.0,0.00020273,2]
[368161910,1751043050638,-460.0,0.00020273,2]
[368161911,1751043050647,-151.0,0.00020273,2]
[368161912,1751043050656,-460.0,0.00020273,2]
[368161913,1751043050665,-460.0,0.00020273,2]
[368161914,1751043050674,-460.0,0.00020273,2]
[368161915,1751043050686,-460.0,0.00020273,2]
[368161916,1751043050695,-460.0,0.00020273,2]
[368161917,1751043050704,-817.86,0.00020273,2]
[368161918,1751043050715,-460.0,0.00020273,2]
[368161919,1751043050724,-632.72,0.00020273,2]
[368161920,1751043050735,-460.0,0.00020273,2]
[368161921,1751043050744,-151.0,0.00020273,2]
[368161922,1751043050754,-151.0,0.00020273,2]
[368161923,1751043050764,-285.914838,0.00020273,2]
[368161924,1751043050774,-460.0,0.00020273,2]
[368161925,1751043050784,-285.914838,0.00020273,2]
[368161926,1751043050794,-460.0,0.00020273,2]
[368161927,1751043050804,-460.0,0.00020273,2]
[368161928,1751043050814,-460.0,0.00020273,2]
[368161929,1751043050824,-460.0,0.00020273,2]
[368161930,1751043050834,-460.0,0.00020273,2]
[368161931,1751043050844,-422.69359754,0.00020273,2]
[368161932,1751043050854,-460.0,0.00020273,2]
[368161933,1751043050865,-460.0,0.00020273,2]
[368161934,1751043050875,-460.0,0.00020273,2]
[368161935,1751043050886,-665.43,0.00020273,2]
[368161936,1751043050895,-460.0,0.00020273,2]
[368161937,1751043050905,-460.0,0.00020273,2]
[368161938,1751043050915,-460.0,0.00020273,2]
[368161939,1751043050924,-460.0,0.00020273,2]
[368161940,1751043050935,-430.0,0.00020273,2]
[368161941,1751043050945,-460.0,0.00020273,2]
[368161942,1751043050955,-460.0,0.00020273,2]
[368161943,1751043050964,-460.0,0.00020273,2]
[368161944,1751043050974,-184.577065,0.00020273,2]
[368161945,1751043050984,-184.577065,0.00020273,2]
[368161946,1751043050994,-151.0,0.00020273,2]
[368161947,1751043051004,-431.71165923,0.00020273,2]
[368161948,1751043051014,-460.0,0.00020273,2]
[368161949,1751043051023,-460.0,0.00020273,2]
[368161950,1751043051034,-5094.42,0.00020273,2]
[368161951,1751043051043,-460.0,0.00020273,2]
[368161952,1751043051052,-159.776707,0.00020273,2]
[368161953,1751043051062,-1728.2,0.00020273,2]
[368161954,1751043051072,-4150.31,0.00020273,2]
[368161955,1751043051082,-460.0,0.00020273,2]
[368161956,1751043051092,-1950.71,0.00020273,2]
[368161957,1751043051103,-460.0,0.00020273,2]
[368161958,1751043051112,-460.0,0.00020273,2]
[368161959,1751043051121,-460.0,0.00020273,2]
[368161960,1751043051131,-460.0,0.00020273,2]
[368161961,1751043051140,-460.0,0.00020273,2]
[368161962,1751043051150,-4539.33,0.00020273,2]
[368161963,1751043051160,-460.0,0.00020273,2]
[368161964,1751043051170,-581.86,0.00020273,2]
[368161965,1751043051181,-460.0,0.00020273,2]
[368161966,1751043051190,-206.069329,0.00020273,2]
[368161967,1751043051199,-692.74,0.00020273,2]
[368161968,1751043051208,-460.0,0.00020273,2]
[368161969,1751043051217,-460.0,0.00020273,2]
[368161970,1751043051226,-206.069329,0.00020273,2]
[368161971,1751043051236,-460.0,0.00020273,2]
[368161972,1751043051245,-460.0,0.00020273,2]
[368161973,1751043051255,-1477.84,0.00020273,2]
[368161974,1751043051264,-460.0,0.00020273,2]
[368161975,1751043051274,-1419.89,0.00020273,2]
[368161976,1751043051284,-2340.21,0.00020273,2]
[368161977,1751043051294,-460.0,0.00020273,2]
[368161978,1751043051303,-349.05,0.00020273,2]
[368161979,1751043051312,-460.0,0.00020273,2]
[368161980,1751043051322,-460.0,0.00020273,2]
[368161981,1751043051332,-460.0,0.00020273,2]
[368161982,1751043051341,-460.0,0.00020273,2]
[368161983,1751043051350,-460.0,0.00020273,2]
[368161984,1751043051463,-1165.21,0.00020273,2]
[368161985,1751043051473,-460.0,0.00020273,2]
[368161986,1751043051483,-1348.73,0.00020273,2]
[368161987,1751043051492,-465.34,0.00020273,2]
[368161988,1751043051501,-460.0,0.00020273,2]
[368161989,1751043051510,-460.0,0.00020273,2]
[368161990,1751043051520,-460.0,0.00020273,2]
[368161991,1751043051531,-460.0,0.00020273,2]
[368161992,1751043051541,-460.0,0.00020273,2]
[368161993,1751043051551,-499.4,0.00020273,2]
[368161994,1751043051560,-1688.52,0.00020273,2]
[368161995,1751043051569,-460.0,0.00020273,2]
[368161996,1751043051578,-460.0,0.00020273,2]
[368161997,1751043051588,-460.0,0.00020273,2]
[368161998,1751043051597,-460.0,0.00020273,2]
[368161999,1751043051607,-272.77006081,0.00020273,2]
[368162000,1751043051617,-839.88,0.00020273,2]
[368162001,1751043051629,-460.0,0.00020273,2]
[368162002,1751043051639,-460.0,0.00020273,2]
[368162003,1751043051648,-460.0,0.00020273,2]
[368162004,1751043051657,-372.924926,0.00020273,2]
[368162005,1751043051666,-460.0,0.00020273,2]
[368162006,1751043051676,-372.924926,0.00020273,2]
[368162007,1751043051686,-688.86,0.00020273,2]
[368162008,1751043051696,-460.0,0.00020273,2]
[368162009,1751043051705,-460.0,0.00020273,2]
[368162010,1751043051714,-204.76,0.00020273,2]
[368162011,1751043051722,-460.0,0.00020273,2]
[368162012,1751043051732,-460.0,0.00020273,2]
[368162013,1751043051740,-671.69,0.00020273,2]
[368162014,1751043051749,-862.89,0.00020273,2]
[368162015,1751043051759,-460.0,0.00020273,2]
[368162016,1751043051768,-460.0,0.00020273,2]
[368162017,1751043051777,-460.0,0.00020273,2]
[368162018,1751043051786,-3251.71,0.00020273,2]
[368162019,1751043051796,-460.0,0.00020273,2]
[368162020,1751043051805,-1656.91,0.00020273,2]
[368162021,1751043051814,-781.68,0.00020273,2]
[368162022,1751043051823,-460.0,0.00020273,2]
[368162023,1751043051832,-2293.32,0.00020273,2]
[368162024,1751043051841,-460.0,0.00020273,2]
[368162025,1751043051851,-830.87,0.00020273,2]
[368162026,1751043051860,-151.0,0.00020273,2]
[368162027,1751043051870,-460.0,0.00020273,2]
[368162028,1751043051879,-824.14,0.00020273,2]
[368162029,1751043051888,-987.87,0.00020273,2]
[368162030,1751043051897,-460.0,0.00020273,2]
[368162031,1751043051907,-460.0,0.00020273,2]
[368162032,1751043051916,-460.0,0.00020273,2]
[368162033,1751043051925,-460.0,0.00020273,2]
[368162034,1751043051935,-338.16728226,0.00020273,2]
[368162035,1751043051944,-460.0,0.00020273,2]
[368162036,1751043051954,-460.0,0.00020273,2]
[368162037,1751043051963,-6348.47,0.00020273,2]
[368162038,1751043051972,-758.58,0.00020273,2]
[368162039,1751043051981,-1276.09,0.00020273,2]
[368162040,1751043051990,-460.0,0.00020273,2]
[368162041,1751043052000,-151.0,0.00020273,2]
[368162042,1751043052009,-4728.92,0.00020273,2]
[368162043,1751043052019,-255.654586,0.00020273,2]
[368162044,1751043052030,-1011.87,0.00020273,2]
[368162045,1751043052039,-460.0,0.00020273,2]
[368162046,1751043052049,-1345.96,0.00020273,2]
[368162047,1751043052059,-3328.7,0.00020273,2]
[368162048,1751043052068,-460.0,0.00020273,2]
[368162049,1751043052078,-460.0,0.00020273,2]
[368162050,1751043052088,-1436.21,0.00020273,2]
[368162051,1751043052098,-598.96,0.00020273,2]
[368162052,1751043052107,-460.0,0.00020273,2]
[368162053,1751043052117,-610.17,0.00020273,2]
[368162054,1751043052127,-409.9871153,0.00020273,2]
[368162055,1751043052137,-517.435814,0.00020273,2]
[368162056,1751043052146,-2701.01,0.00020273,2]
[368162057,1751043052156,-517.435814,0.00020273,2]
[368162058,1751043052165,-634.89,0.00020273,2]
[368162059,1751043052175,-1107.05,0.00020273,2]
[368162060,1751043052186,-460.0,0.00020273,2]
[368162061,1751043052195,-151.0,0.000203,3]
[368162062,1751043052205,-160.0,0.00020314,3]
[368162063,1751043052214,-847.04181546,0.00020314,3]
[368162064,1751043052224,-213.75309343,0.00020314,3]
[368162065,1751043052233,-7891.5880448,0.00020314,3]
[368162066,1751043052242,-151.0,0.00020314,2]
[368162067,1751043052251,-151.0,0.00020314,2]
[368162068,1751043052260,-151.0,0.00020314,2]
[368162069,1751043052269,-151.0,0.00020314,2]
[368162070,1751043052279,-151.0,0.00020314,2]
[368162071,1751043052288,-1000.0,0.00020321,2]
[368162072,1751043052297,-1000.0,0.00020321,2]
[368162073,1751043052306,-627.1042849,0.00020321,2]
[368162074,1751043052315,-1000.0,0.00020321,2]
[368162075,1751043052325,-1000.0,0.00020321,2]
[368162076,1751043052334,-1000.0,0.00020321,2]
[368162077,1751043052343,-5394.89699381,0.00020447,2]
[368162078,1751043052353,-151.0,0.000205,3]
[368162079,1751043052362,-7891.5880448,0.00020521,3]
[368162080,1751043052372,-160.0,0.00020526,2]
[368162081,1751043052381,-230.26210603,0.00020526,2]
[368162082,1751043052391,-160.0,0.00020526,2]
[368162083,1751043052401,-847.04181546,0.00020526,2]
[368162084,1751043052410,-160.0,0.00020526,2]
[368162085,1751043052419,-213.75309343,0.00020526,2]
[368162086,1751043052429,-160.0,0.00020526,2]
[368162087,1751043052438,-836.98798914,0.00020526,2]
[368162088,1751043052447,-160.0,0.00020526,2]
[368162089,1751043052456,-160.0,0.00020526,2]
[368162090,1751043052466,-160.0,0.00020526,2]
[368162091,1751043052475,-214.91804724,0.00020526,2]
[368162092,1751043052484,-160.0,0.00020526,2]
[368162093,1751043052494,-12562.41216491,0.00020526,2]
[368162094,1751043052503,-1171.98,0.00020538,3]
[368162095,1751043052512,-781.32,0.00020538,3]
[368162096,1751043052521,-390.66,0.00020538,3]
[368162097,1751043052531,-460.0,0.00020547,2]
[368162098,1751043052543,-460.0,0.00020547,2]
[368162099,1751043052552,-267.55799223,0.00020547,2]
[368162100,1751043052562,-460.0,0.00020547,2]
[368162101,1751043052571,-460.0,0.00020547,2]
[368162102,1751043052582,-460.0,0.00020547,2]
[368162103,1751043052591,-460.0,0.00020547,2]
[368162104,1751043052601,-460.0,0.00020547,2]
[368162105,1751043052611,-460.0,0.00020547,2]
[368162106,1751043052621,-467.24816002,0.00020547,2]
[368162107,1751043052630,-460.0,0.00020547,2]
[368162108,1751043052639,-460.0,0.00020547,2]
[368162109,1751043052648,-151.0,0.00020547,2]
[368162110,1751043052658,-460.0,0.00020547,2]
[368162111,1751043052667,-460.0,0.00020547,2]
[368162112,1751043052677,-151.0,0.00020547,2]
[368162113,1751043052686,-460.0,0.00020547,2]
[368162114,1751043052695,-460.0,0.00020547,2]
[368162115,1751043052704,-460.0,0.00020547,2]
[368162116,1751043052713,-460.0,0.00020547,2]
[368162117,1751043052723,-460.0,0.00020547,2]
[368162118,1751043052732,-447.41043884,0.00020547,2]
[368162119,1751043052741,-151.0,0.00020547,2]
[368162120,1751043052751,-460.0,0.00020547,2]
[368162121,1751043052760,-460.0,0.00020547,2]
[368162122,1751043052770,-460.0,0.00020547,2]
[368162123,1751043052779,-460.0,0.00020547,2]
[368162124,1751043052788,-708.73,0.00020547,2]
[368162125,1751043052797,-460.0,0.00020547,2]
[368162126,1751043052806,-325.55,0.00020547,2]
[368162127,1751043052815,-460.0,0.00020547,2]
[368162128,1751043052825,-460.0,0.00020547,2]
[368162129,1751043052834,-312.35563035,0.00020547,2]
[368162130,1751043052843,-151.276332,0.00020547,2]
[368162131,1751043052853,-151.276332,0.00020547,2]
[368162132,1751043052862,-460.0,0.00020547,2]
[368162133,1751043052872,-453.8543681,0.00020547,2]
[368162134,1751043052881,-460.0,0.00020547,2]
[368162135,1751043052890,-460.0,0.00020547,2]
[368162136,1751043052900,-460.0,0.00020547,2]
[368162137,1751043052909,-460.0,0.00020547,2]
[368162138,1751043052918,-460.0,0.00020547,2]
[368162139,1751043052927,-460.0,0.00020547,2]
[368162140,1751043052936,-460.0,0.00020547,2]
[368162141,1751043052946,-151.0,0.00020547,2]
[368162142,1751043052955,-817.86,0.00020547,2]
[368162143,1751043052965,-151.0,0.00020547,2]
[368162144,1751043052974,-460.0,0.00020547,2]
[368162145,1751043052983,-632.72,0.00020547,2]
[368162146,1751043052993,-460.0,0.00020547,2]
[368162147,1751043053010,-859.720302,0.00020547,2]
[368162148,1751043053019,-859.720302,0.00020547,2]
[368162149,1751043053029,-460.0,0.00020547,2]
[368162150,1751043053039,-343.433989,0.00020547,2]
[368162151,1751043053048,-460.0,0.00020547,2]
[368162152,1751043053057,-460.0,0.00020547,2]
[368162153,1751043053066,-460.0,0.00020547,2]
[368162154,1751043053076,-343.433989,0.00020547,2]
[368162155,1751043053085,-460.0,0.00020547,2]
[368162156,1751043053096,-460.0,0.00020547,2]
[368162157,1751043053106,-460.0,0.00020547,2]
[368162158,1751043053116,-460.0,0.00020547,2]
[368162159,1751043053125,-665.43,0.00020547,2]
[368162160,1751043053135,-460.0,0.00020547,2]
[368162161,1751043053144,-460.0,0.00020547,2]
[368162162,1751043053153,-460.0,0.00020547,2]
[368162163,1751043053165,-460.0,0.00020547,2]
[368162164,1751043053174,-249.320732,0.00020547,2]
[368162165,1751043053183,-460.0,0.00020547,2]
[368162166,1751043053193,-460.0,0.00020547,2]
[368162167,1751043053202,-460.0,0.00020547,2]
[368162168,1751043053211,-229.51402,0.00020547,2]
[368162169,1751043053220,-460.0,0.00020547,2]
[368162170,1751043053230,-5094.42,0.00020547,2]
[368162171,1751043053239,-460.0,0.00020547,2]
[368162172,1751043053248,-165.037213,0.00020547,2]
[368162173,1751043053258,-1728.2,0.00020547,2]
[368162174,1751043053267,-4150.31,0.00020547,2]
[368162175,1751043053277,-165.037213,0.00020547,2]
[368162176,1751043053286,-460.0,0.00020547,2]
[368162177,1751043053295,-1950.71,0.00020547,2]
[368162178,1751043053305,-460.0,0.00020547,2]
[368162179,1751043053315,-151.0,0.00020547,2]
[368162180,1751043053324,-460.0,0.00020547,2]
[368162181,1751043053333,-460.0,0.00020547,2]
[368162182,1751043053343,-4539.33,0.00020547,2]
[368162183,1751043053352,-460.0,0.00020547,2]
[368162184,1751043053362,-581.86,0.00020547,2]
[368162185,1751043053371,-607.98,0.00020547,2]
[368162186,1751043053380,-206.069329,0.00020547,2]
[368162187,1751043053389,-692.74,0.00020547,2]
[368162188,1751043053398,-460.0,0.00020547,2]
[368162189,1751043053407,-460.0,0.00020547,2]
[368162190,1751043053416,-256.966885,0.00020547,2]
[368162191,1751043053426,-206.069329,0.00020547,2]
[368162192,1751043053435,-256.966885,0.00020547,2]
[368162193,1751043053444,-460.0,0.00020547,2]
[368162194,1751043053453,-1477.84,0.00020547,2]
[368162195,1751043053462,-460.0,0.00020547,2]
[368162196,1751043053471,-1419.89,0.00020547,2]
[368162197,1751043053480,-2340.21,0.00020547,2]
[368162198,1751043053490,-460.0,0.00020547,2]
[368162199,1751043053499,-460.0,0.00020547,2]
[368162200,1751043053508,-460.0,0.00020547,2]
[368162201,1751043053518,-460.0,0.00020547,2]
[368162202,1751043053530,-538.52,0.00020547,2]
[368162203,1751043053543,-460.0,0.00020547,2]
[368162204,1751043053554,-1165.21,0.00020547,2]
[368162205,1751043053564,-460.0,0.00020547,2]
[368162206,1751043053573,-1348.73,0.00020547,2]
[368162207,1751043053583,-460.0,0.00020547,2]
[368162208,1751043053592,-465.34,0.00020547,2]
[368162209,1751043053602,-460.0,0.00020547,2]
[368162210,1751043053612,-460.0,0.00020547,2]
[368162211,1751043053621,-499.4,0.00020547,2]
[368162212,1751043053631,-1688.52,0.00020547,2]
[368162213,1751043053640,-460.0,0.00020547,2]
[368162214,1751043053650,-460.0,0.00020547,2]
[368162215,1751043053659,-460.0,0.00020547,2]
[368162216,1751043053668,-460.0,0.00020547,2]
[368162217,1751043053678,-839.88,0.00020547,2]
[368162218,1751043053779,-358.75722486,0.00020547,2]
[368162219,1751043053790,-460.0,0.00020547,2]
[368162220,1751043053799,-460.0,0.00020547,2]
[368162221,1751043053808,-460.0,0.00020547,2]
[368162222,1751043053817,-372.924926,0.00020547,2]
[368162223,1751043053826,-372.924926,0.00020547,2]
[368162224,1751043053835,-688.86,0.00020547,2]
[368162225,1751043053844,-460.0,0.00020547,2]
[368162226,1751043053853,-460.0,0.00020547,2]
[368162227,1751043053863,-460.0,0.00020547,2]
[368162228,1751043053871,-460.0,0.00020547,2]
[368162229,1751043053880,-671.69,0.00020547,2]
[368162230,1751043053890,-862.89,0.00020547,2]
[368162231,1751043053899,-460.0,0.00020547,2]
[368162232,1751043053909,-460.0,0.00020547,2]
[368162233,1751043053918,-3251.71,0.00020547,2]